[Event "Stay Safe Play From Home 151"]
[Site "T#646137Emanuel Laske"]
[Date "2020.05.17"]
[Round "8"]
[White "Indianquant"]
[Black "XShot"]
[Result "0-1"]
[WhiteElo "2265"]
[BlackElo "2459"]
[Annotator "RC"]
[PlyCount "40"]
[EventDate "2020.05.17"]
[EventType "swiss (blitz)"]
[TimeControl "60"]

1. Nf3 {[%emt 0:00:01]} c6 {[%emt 0:00:00]} 2. c4 {[%emt 0:00:01]} d5 {[%emt 0:00:00]} 3. d4 {[%emt 0:00:00]} Nf6 {[%emt 0:00:00]} 4. e3 {[%emt 0:00:00]} Bg4 {[%emt 0:00:01]} 5. Nbd2 {[%emt 0:00:01]} Bxf3 {[%emt 0:00:01]} 6. Qxf3 {[%emt 0:00:01]} e6 {[%emt 0:00:00]} 7. Bd3 {[%emt 0:00:01]} Nbd7 {[%emt 0:00:01]} 8. O-O {[%emt 0:00:00]} Bd6 {[%emt 0:00:01]} 9. Rd1 {[%emt 0:00:00]} O-O {[%emt 0:00:01]} 10. b3 {[%emt 0:00:00]} e5 {[%emt 0:00:01]} 11. cxd5 {[%emt 0:00:01]} cxd5 {[%emt 0:00:01]} 12. dxe5 {[%emt 0:00:01]} Nxe5 {[%emt 0:00:00]} 13. Qe2 {[%emt 0:00:00]} Nxd3 {[%emt 0:00:01]} 14. Qxd3 {[%emt 0:00:00]} Qc7 {[%emt 0:00:00]} 15. h3 {[%emt 0:00:01]} Be5 {[%emt 0:00:00]} 16. Rb1 {[%emt 0:00:02]} Rfd8 {[%emt 0:00:01]} 17. Bb2 {[%emt 0:00:01]} Rac8 {[%emt 0:00:01]} 18. Bxe5 {[%emt 0:00:02]} Qxe5 {[%emt 0:00:00]} 19. Nf3 {[%emt 0:00:00]} Qe4 {[%emt 0:00:01]} 20. Rbc1 {[%emt 0:00:00]} Rxc1 {[%emt 0:00:02] Indianquant resigns (Lag: Av=0.72s, max=1.3s)} 0-1

[Event "Stay Safe Play From Home 151"]
[Site "T#646137Emanuel Laske"]
[Date "2020.05.17"]
[Round "8"]
[White "Sfantul321"]
[Black "Castlingarrocco"]
[Result "1-0"]
[WhiteElo "2013"]
[BlackElo "2038"]
[Annotator "NA"]
[PlyCount "43"]
[EventDate "2020.05.17"]
[EventType "swiss (blitz)"]
[TimeControl "60"]

1. c4 {[%emt 0:00:00]} c6 {[%emt 0:00:01]} 2. Nc3 {[%emt 0:00:00]} d5 {[%emt 0:00:00]} 3. cxd5 {[%emt 0:00:00]} cxd5 {[%emt 0:00:00]} 4. d4 {[%emt 0:00:00]} e6 {[%emt 0:00:00]} 5. Nf3 {[%emt 0:00:00]} f5 {[%emt 0:00:00]} 6. Bf4 {[%emt 0:00:01]} Nf6 {[%emt 0:00:01]} 7. e3 {[%emt 0:00:00]} Bd6 {[%emt 0:00:01]} 8. Bb5+ {[%emt 0:00:01]} Nc6 {[%emt 0:00:01]} 9. Bxc6+ {[%emt 0:00:01]} bxc6 {[%emt 0:00:00]} 10. Bxd6 {[%emt 0:00:01]} Qxd6 {[%emt 0:00:01]} 11. Ne5 {[%emt 0:00:00]} Ba6 {[%emt 0:00:01]} 12. Qa4 {[%emt 0:00:03]} Bb7 {[%emt 0:00:06]} 13. O-O {[%emt 0:00:01]} O-O {[%emt 0:00:01]} 14. Rac1 {[%emt 0:00:01]} Rfc8 {[%emt 0:00:02]} 15. Rc2 {[%emt 0:00:01]} Ne4 {[%emt 0:00:01]} 16. Nxe4 {[%emt 0:00:01]} fxe4 {[%emt 0:00:00]} 17. Rfc1 {[%emt 0:00:01]} Rc7 {[%emt 0:00:01]} 18. Nxc6 {[%emt 0:00:02]} Rac8 {[%emt 0:00:02]} 19. Ne7+ {[%emt 0:00:03]} Qxe7 {[%emt 0:00:04]} 20. Rxc7 {[%emt 0:00:02]} Rxc7 {[%emt 0:00:00]} 21. Rxc7 {[%emt 0:00:01]} Qxc7 {[%emt 0:00:01]} 22. Qe8# {[%emt 0:00:01] (Lag: Av=0.28s, max=0.6s)} 1-0